{"text_format":"1","workbook":"xlsx","n_sheets":14,"sheets":["Cover","Info","Results","E01","E02","E03","E04","E05","E06","E07","E08","E09","E10","About"],"not_rendered":{"charts":10,"images":46,"macros":1,"external_links":0,"defined_names":17,"comments":0,"pivot_tables":0},"unopened":[],"bounds":{"document_bytes":16777216,"sheet_cells":100000,"rows_first":2000,"rows_last":500,"rows_between":2000,"halvings":0,"cell_chars":16384,"cell_head_chars":4096},"cells_cut":0,"cells_raw":0,"read":"whole","date_system":"1900"}

{"sheet":"Cover","index":0,"n_rows":0,"n_cols":0,"rows_kept":0,"cut":false,"hidden":false,"merged":[]}

{"sheet":"Info","index":1,"n_rows":49,"n_cols":4,"rows_kept":49,"cut":false,"hidden":false,"merged":[[0,0,0,16383],[49,1,49,3],[2,1,2,2],[3,1,3,2],[4,1,4,2],[5,1,5,2],[6,1,6,2],[39,1,39,2],[40,1,40,2],[41,1,41,2],[42,1,42,2],[43,1,43,2],[45,1,45,3],[46,1,46,3]]}
[]
[]
[null,"Esta Evaluación",null,"Respuesta"]
[null,"Nombre de la ciudad"]
[null,"Tipo de ciudad (municipio, áreas metropolitanas, etc)"]
[null,"País"]
[null,"Fecha de evaluación"]
[]
[null,"Perfil de la ciudad (necesario)","Respuesta","Fuente de los datos"]
[null,"Título del nivel más alto de autoridad (ej: alcalde, etc)"]
[null,"Población total de la ciudad:   "]
[null,"Superficie de la ciudad (en kilómetros cuadrados):"]
[null,"Densidad de población (por kilómetro cuadrado): "]
[null,"Población joven (15-24) (%):"]
[null,"Población de la tercera edad (mayores de 65 años) (%):"]
[null,"Género (hogares con jefas de familia):"]
[null,"Tasa de alfabetismo (% de la población que lee y escribe):"]
[null,"Índice de pobreza (% población que no vive en la pobreza):"]
[null,"Ingreso familiar promedio (en dólares estadounidenses):"]
[null,"Residentes que no son ciudadanos (%):"]
[null,"Riesgo de desastres más probable conocido: "]
[null,"Desastre más severo (conocido): "]
[]
[null,"Perfil de la ciudad [1]","Cifras totales y/o porcentaje\n de la población total","Fuente de la información"]
[null,"Población de personas con discapacidad (prevalencia estimada)"]
[null,"Información desglosada por ingresos (por debajo del umbral de pobreza)"]
[null,"Información desglosada por sexo"]
[null,"Información desglosada por edad"]
[null,"Información desglosada por tipo de discapacidad (deficiencia física, deficiencia sensorial, deficiencia cognitiva, deficiencia intelectual, enfermedad mental y algún tipo de enfermedad crónica)"]
[null,"Información desglosada por barrios o manzanas"]
[]
[null,"Perfil de ciudad (opcional)","Respuesta","Fuente de los datos"]
[null,"Cantidad total de hogares: "]
[null,"Personas por unidad familiar:"]
[null,"Costo de vida (en dólares estadounidenses):"]
[null,"PIB per cápita del país (en dólares estadounidenses):"]
[null,"Coeficiente de GINI:"]
[null,"PIB per cápita de la ciudad (en dólares estadounidenses):"]
[]
[null,"Equipo de Reducción del Riesgo de Desastres y Resiliencia del Gobierno Local",null,"Respuesta"]
[null,"Nombre de la persona que dirige / coordina la finalización cuadro de mando:"]
[null,"Organización:"]
[null,"Detalles de contacto:"]
[null,"Voluntad para compartir resultados o ser utilizado como ejemplo / estudio de caso por UNDRR y socios:"]
[]
[null,"Plantilla para la situación de las personas con discapacidad en la ciudad / gobierno local [2]"]
[]
[]
[null,"Información sobre las partes interesadas [3]"]

{"sheet":"Results","index":2,"n_rows":145,"n_cols":13,"rows_kept":145,"cut":false,"hidden":false,"merged":[[39,3,39,7],[62,3,62,9],[81,3,81,6],[86,3,86,5],[93,3,93,6],[89,2,89,5],[90,2,90,5],[75,2,75,5],[76,2,76,5],[104,1,104,3],[88,2,88,5],[95,2,95,5],[96,2,96,5],[102,1,102,2],[34,2,34,5],[83,2,83,5],[41,2,41,5],[42,2,42,5],[49,2,49,5],[56,2,56,5],[54,3,54,6],[67,3,67,6],[73,3,73,6],[69,2,69,5],[70,2,70,5],[64,2,64,5],[58,2,58,5],[57,2,57,5],[59,2,59,5],[35,2,35,5]]}
[]
[]
[]
[]
[null,{"$f":"Info!B4&IF(Info!D4=\"\",\"\",Info!D4)","v":"Nombre de la ciudad"}]
[]
[null,{"$f":"Info!B6&IF(Info!D6=\"\",\"\",Info!D6)","v":"País"}]
[]
[null,{"$f":"Info!B7&IF(Info!D7=\"\",\"\",Info!D7)","v":"Fecha de evaluación"}]
[]
[]
[]
[]
[]
[]
[]
[]
[]
[]
[]
[]
[]
[]
[]
[]
[]
[]
[]
[]
[]
[]
[]
[null,"Essential 01: ",null,{"$f":"D109","v":"Organizarse para la resiliencia - Inclusión de las personas con discapacidad en la gobernabilidad del riesgo de desastres"}]
[]
[null,{"$f":"C121","v":"Q 1.1"},{"$f":"E121","v":"No dejar a nadie atrás"},null,null,null,{"$f":"F121","v":0}]
[null,{"$f":"C122","v":"Q 1.2"},{"$f":"E122","v":"2 Organización, coordinación y participación"},null,null,null,{"$f":"F122","v":0}]
[]
[]
[]
[null,"Essential 02: ",null,{"$f":"D110","v":"Identificar, comprender y utilizar los escenarios de riesgo actuales y futuros   - Inclusión de las personas con discapacidad en los escenarios de riesgo de desastres"}]
[]
[null,{"$f":"C123","v":"Q 2.1"},{"$f":"E123","v":"Diseño de análisis de riesgos y escenarios de riesgo que tengan en cuenta la discapacidad"},null,null,null,{"$f":"F123","v":0}]
[null,{"$f":"C124","v":"Q 2.2"},{"$f":"E124","v":"Efectos en cascada"},null,null,null,{"$f":"F124","v":0}]
[]
[]
[]
[]
[null,"Essential 03:",null,{"$f":"D111","v":"Fortalecer la capacidad financiera para la resiliencia  - Inclusión de las personas con discapacidad en los mecanismos financieros"}]
[]
[null,{"$f":"C125","v":"Q 3.1"},{"$f":"E125","v":"Mecanismos financieros inclusivos"},null,null,null,{"$f":"F125","v":0}]
[]
[]
[]
[]
[null,"Essential 04:",null,{"$f":"D112","v":"Promover el diseño y desarrollo urbano resiliente- Inclusión de las personas con discapacidad en los códigos de uso de suelo/construcción"}]
[]
[null,{"$f":"C126","v":"Q 4.1"},{"$f":"E126","v":"Diseño urbano inclusivo y resiliente"},null,null,null,{"$f":"F126","v":0}]
[null,{"$f":"C127","v":"Q 4.2"},{"$f":"E127","v":"Códigos y normas de construcción"},null,null,null,{"$f":"F127","v":0}]
[null,{"$f":"C128","v":"Q 4.3"},{"$f":"E128","v":"Códigos y normas de construcción"},null,null,null,{"$f":"F128","v":0}]
[null,{"$f":"C129","v":"Q 4.4"},{"$f":"E129","v":"Eliminación de barreras del entorno"},null,null,null,{"$f":"F129","v":0}]
[]
[]
[null,"Essential 05:",null,{"$f":"D113","v":"Proteger las zonas naturales de amortiguamiento para mejorar las funciones de protección de los ecosistemas- Gestión de los servicios ecosistémicos teniendo en cuenta a las personas con discapacidad"}]
[]
[null,null,"-- no question --"]
[]
[]
[null,"Essential 06:",null,{"$f":"D114","v":"Fortalecer la capacidad institucional para la resiliencia   - Inclusión de personas con discapacidad en la capacidad institucional"}]
[]
[null,{"$f":"C130","v":"Q 6.1"},{"$f":"E130","v":"Desarrollo de capacidades e inclusión para la resiliencia"},null,null,null,{"$f":"F130","v":0}]
[null,{"$f":"C131","v":"Q 6.2"},{"$f":"E131","v":"Lenguaje accesible"},null,null,null,{"$f":"F131","v":0}]
[]
[]
[null,"Essential 07: ",null,{"$f":"D115","v":"Comprender y fortalecer la capacidad social para la resiliencia - Inclusión de las personas con discapacidad en la capacidad de la sociedad"}]
[]
[null,{"$f":"C132","v":"Q 7.1"},{"$f":"E132","v":"Participación activa de las organizaciones de personas con discapacidad"},null,null,null,{"$f":"F132","v":0}]
[null,{"$f":"C133","v":"Q 7.2"},{"$f":"E133","v":"Desarrollo de capacidades por y para las organizaciones de personas con discapacidad"},null,null,null,{"$f":"F133","v":0}]
[]
[]
[]
[]
[null,"Essential 08:",null,{"$f":"D116","v":"Aumentar la resiliencia de la infraestructura vital - Inclusión de las personas con discapacidad en la resiliencia de la infraestructura vital"}]
[]
[null,{"$f":"C134","v":"Q 8.1"},{"$f":"E134","v":"Protección contra la violencia"},null,null,null,{"$f":"F134","v":0}]
[]
[]
[null,"Essential 09:",null,{"$f":"D117","v":"Asegurar una respuesta efectiva a los desastres - Inclusión de las personas con discapacidad en la respuesta ante los desastres"}]
[]
[null,{"$f":"C135","v":"Q 9.1"},{"$f":"E135","v":"Detección inclusiva, vigilancia y alertas tempranas"},null,null,null,{"$f":"F135","v":0}]
[null,{"$f":"C136","v":"Q 9.2"},{"$f":"E136","v":"Simulacros"},null,null,null,{"$f":"F136","v":0}]
[null,{"$f":"C137","v":"Q 9.3"},{"$f":"E137","v":"Campañas de sensibilización y simulacros multiescenario"},null,null,null,{"$f":"F137","v":0}]
[]
[]
[null,"Essential 10: ",null,{"$f":"D118","v":"Acelerar el proceso de recuperación y reconstruir mejorr - Inclusión de las personas con discapacidad en la recuperación/reconstrucción mejorada"}]
[]
[null,{"$f":"C138","v":"Q 10.1"},{"$f":"E138","v":"Reconstrucción y rehabilitación inclusivas"},null,null,null,{"$f":"F138","v":0}]
[null,{"$f":"C139","v":"Q 10.2"},{"$f":"E139","v":"Recopilación de lecciones aprendidas"},null,null,null,{"$f":"F139","v":0}]
[]
[]
[]
[]
[]
[null,{"$f":"TODAY()","v":"2023-06-23"},null,null,null,null,null,{"$f":"Info!$B$4","v":"Nombre de la ciudad"},{"$f":"IF(Info!D4=\"\",\"\",Info!D4)","v":""},null,{"$f":"Info!$B$6","v":"País"},{"$f":"IF(Info!D6=\"\",\"\",Info!D6)","v":""}]
[]
[]
[]
[]
[null,null,"Label","Name",null,"Essential","TotalScore","MaxScore","Label"]
[null,null,"E1",{"$f":"'E01'!I2&\" - \"&'E01'!I3","v":"Organizarse para la resiliencia - Inclusión de las personas con discapacidad en la gobernabilidad del riesgo de desastres"},null,"E1",{"$f":"SUMIFS($F$121:$F$997,$B$121:$B$997,F109)","v":0},{"$f":"COUNTIFS($B$121:$B$997,F109)*3","v":6},"01",null,{"$f":"SUM(G109:G118)","v":0},{"$f":"K109/K110","v":0},{"$f":"CONCATENATE(\"La puntuación total para esta evaluación es \",SUM(G109:G118),\" / \",SUM(H109:H118))","v":"La puntuación total para esta evaluación es 0 / 57"}]
[null,null,"E2",{"$f":"'E02'!I2&\" - \"&'E02'!I3","v":"Identificar, comprender y utilizar los escenarios de riesgo actuales y futuros   - Inclusión de las personas con discapacidad en los escenarios de riesgo de desastres"},null,"E2",0,{"$f":"COUNTIFS($B$121:$B$997,F110)*3","v":6},"02",null,{"$f":"SUM(H109:H118)","v":57},{"$f":"1-L109","v":1}]
[null,null,"E3",{"$f":"'E03'!I2&\" - \"&'E03'!I3","v":"Fortalecer la capacidad financiera para la resiliencia  - Inclusión de las personas con discapacidad en los mecanismos financieros"},null,"E3",0,3,"03"]
[null,null,"E4",{"$f":"'E04'!I2& \"- \"&'E04'!I3","v":"Promover el diseño y desarrollo urbano resiliente- Inclusión de las personas con discapacidad en los códigos de uso de suelo/construcción"},null,"E4",0,12,"04"]
[null,null,"E5",{"$f":"'E05'!I2&\"- \"&'E05'!I4","v":"Proteger las zonas naturales de amortiguamiento para mejorar las funciones de protección de los ecosistemas- Gestión de los servicios ecosistémicos teniendo en cuenta a las personas con discapacidad"},null,"E5",0,0,"05"]
[null,null,"E6",{"$f":"'E06'!I2&\" - \"&'E06'!I3","v":"Fortalecer la capacidad institucional para la resiliencia   - Inclusión de personas con discapacidad en la capacidad institucional"},null,"E6",0,6,"06"]
[null,null,"E7",{"$f":"'E07'!I2&\"- \"&'E07'!I3","v":"Comprender y fortalecer la capacidad social para la resiliencia - Inclusión de las personas con discapacidad en la capacidad de la sociedad"},null,"E7",0,6,"07"]
[null,null,"E8",{"$f":"'E08'!I2&\" - \"&'E08'!I3","v":"Aumentar la resiliencia de la infraestructura vital - Inclusión de las personas con discapacidad en la resiliencia de la infraestructura vital"},null,"E8",0,3,"08"]
[null,null,"E9",{"$f":"'E09'!I2&\" - \"&'E09'!I3","v":"Asegurar una respuesta efectiva a los desastres - Inclusión de las personas con discapacidad en la respuesta ante los desastres"},null,"E9",0,9,"09"]
[null,null,"E10",{"$f":"'E10'!I2&\"r - \"&'E10'!I3","v":"Acelerar el proceso de recuperación y reconstruir mejorr - Inclusión de las personas con discapacidad en la recuperación/reconstrucción mejorada"},null,"E10",0,6,"10"]
[]
[null,"Section","Ref",null,"Question","SelectedScore","ThisScore"]
[null,"E1",{"$f":"'E01'!G$5","v":"Q 1.1"},null,{"$f":"'E01'!I$5","v":"No dejar a nadie atrás"},{"$f":"IF(G121=\"\",0,IF(G121=0,0,4-G121))","v":0},{"$f":"OFFSET('E01'!$E$1,MATCH(C121,'E01'!G:G,0)+3,0)","v":0},null,"Remarks: "]
[null,"E1",{"$f":"'E01'!G$16","v":"Q 1.2"},null,{"$f":"'E01'!I$16","v":"2 Organización, coordinación y participación"},0,{"$f":"OFFSET('E01'!$E$1,MATCH(C122,'E01'!G:G,0)+3,0)","v":0},null,"- On this page, firstly fix from Row 126 downward to reflect all questions in this Scorecard"]
[null,"E2",{"$f":"'E02'!G$5","v":"Q 2.1"},null,{"$f":"'E02'!I$5","v":"Diseño de análisis de riesgos y escenarios de riesgo que tengan en cuenta la discapacidad"},0,{"$f":"OFFSET('E02'!$E$1,MATCH(C123,'E02'!G:G,0)+3,0)","v":0},null,"- Column G from G127 downward, must double check the formula.  (Formula = offset(reference, rows, cols, [height],[width])"]
[null,"E2",{"$f":"'E02'!G$16","v":"Q 2.2"},null,{"$f":"'E02'!I$16","v":"Efectos en cascada"},0,{"$f":"OFFSET('E02'!$E$1,MATCH(C124,'E02'!G:G,0)+3,0)","v":0},null,"- Column F from F127 downward, must adjust the formula. If the scoring bar is between 0-3, use \"4\"; if the scoring is between 0-5, use \"6\""]
[null,"E3",{"$f":"'E03'!G$5","v":"Q 3.1"},null,{"$f":"'E03'!I$5","v":"Mecanismos financieros inclusivos"},0,{"$f":"OFFSET('E03'!$E$1,MATCH(C125,'E03'!G:G,0)+3,0)","v":0},null,"E.G., =IF(G127=\"\",0,IF(G127=0,0,4-G127)) is for 0-3 scoring bar"]
[null,"E4",{"$f":"'E04'!G$5","v":"Q 4.1"},null,{"$f":"'E04'!I$5","v":"Diseño urbano inclusivo y resiliente"},0,{"$f":"OFFSET('E04'!$E$1,MATCH(C126,'E04'!G:G,0)+3,0)","v":0},null,"E.G., =IF(G127=\"\",0,IF(G127=0,0,6-G127)) is for 0-5 scoring bar"]
[null,"E4",{"$f":"'E04'!G$16","v":"Q 4.2"},null,{"$f":"'E04'!I$16","v":"Códigos y normas de construcción"},0,{"$f":"OFFSET('E04'!$E$1,MATCH(C127,'E04'!G:G,0)+3,0)","v":0}]
[null,"E4",{"$f":"'E04'!G$27","v":"Q 4.3"},null,{"$f":"'E04'!I$27","v":"Códigos y normas de construcción"},0,{"$f":"OFFSET('E04'!$E$1,MATCH(C128,'E04'!G:G,0)+3,0)","v":0},null,"-Then, work on Row 114 - 123"]
[null,"E4",{"$f":"'E04'!G$38","v":"Q 4.4"},null,{"$f":"'E04'!I$38","v":"Eliminación de barreras del entorno"},0,{"$f":"OFFSET('E04'!$E$1,MATCH(C129,'E04'!G:G,0)+3,0)","v":0},null,"- Check Column D (D114:D123) for the Essential titles"]
[null,"E6",{"$f":"'E06'!G$5","v":"Q 6.1"},null,{"$f":"'E06'!I$5","v":"Desarrollo de capacidades e inclusión para la resiliencia"},0,{"$f":"OFFSET('E06'!$E$1,MATCH(C130,'E06'!G:G,0)+3,0)","v":0},null,"- Check Column G (G114:G123).  The formular should not need fixing. (=SUMIFS($F$126:$F$1002,$B$126:$B$1002,F114)"]
[null,"E6",{"$f":"'E06'!G$16","v":"Q 6.2"},null,{"$f":"'E06'!I$16","v":"Lenguaje accesible"},0,{"$f":"OFFSET('E06'!$E$1,MATCH(C131,'E06'!G:G,0)+3,0)","v":0},null,"- Check Column H (H114:H123) Maximum Score"]
[null,"E7",{"$f":"'E07'!G$5","v":"Q 7.1"},null,{"$f":"'E07'!I$5","v":"Participación activa de las organizaciones de personas con discapacidad"},0,{"$f":"OFFSET('E07'!$E$1,MATCH(C132,'E07'!G:G,0)+3,0)","v":0},null,"- Use formular =COUNTIFS($B$126:$B$1002,F114)*3, if scoring bar is 0-3"]
[null,"E7",{"$f":"'E07'!G$16","v":"Q 7.2"},null,{"$f":"'E07'!I$16","v":"Desarrollo de capacidades por y para las organizaciones de personas con discapacidad"},0,{"$f":"OFFSET('E07'!$E$1,MATCH(C133,'E07'!G:G,0)+3,0)","v":0},null,"- Use formular =COUNTIFS($B$126:$B$1002,F114)*5, if scoring bar is 0-5"]
[null,"E8",{"$f":"'E08'!G$5","v":"Q 8.1"},null,{"$f":"'E08'!I$5","v":"Protección contra la violencia"},0,{"$f":"OFFSET('E08'!$E$1,MATCH(C134,'E08'!G:G,0)+3,0)","v":0}]
[null,"E9",{"$f":"'E09'!G$5","v":"Q 9.1"},null,{"$f":"'E09'!I$5","v":"Detección inclusiva, vigilancia y alertas tempranas"},0,{"$f":"OFFSET('E09'!$E$1,MATCH(C135,'E09'!G:G,0)+3,0)","v":0},null,"- Then adjust the result display area above"]
[null,"E9",{"$f":"'E09'!G$16","v":"Q 9.2"},null,{"$f":"'E09'!I$16","v":"Simulacros"},0,{"$f":"OFFSET('E09'!$E$1,MATCH(C136,'E09'!G:G,0)+3,0)","v":0},null,"- Fix the list of indicators"]
[null,"E9",{"$f":"'E09'!G$27","v":"Q 9.3"},null,{"$f":"'E09'!I$27","v":"Campañas de sensibilización y simulacros multiescenario"},0,{"$f":"OFFSET('E09'!$E$1,MATCH(C137,'E09'!G:G,0)+3,0)","v":0},null,"- Apply appropriate chart types"]
[null,"E10",{"$f":"'E10'!G$5","v":"Q 10.1"},null,{"$f":"'E10'!I$5","v":"Reconstrucción y rehabilitación inclusivas"},0,{"$f":"OFFSET('E10'!$E$1,MATCH(C138,'E10'!G:G,0)+3,0)","v":0},null,"- Change chart's axis value (3 maximum for 0-3 scoring bar, and 5 maximum for 0-5 scoring bar)"]
[null,"E10",{"$f":"'E10'!G$16","v":"Q 10.2"},null,{"$f":"'E10'!I$16","v":"Recopilación de lecciones aprendidas"},0,{"$f":"OFFSET('E10'!$E$1,MATCH(C139,'E10'!G:G,0)+3,0)","v":0},null,"- Adjust the chart diaplay alignment across all essentials, etc."]
[null,null,null,null,null,null,null,null,"- View from 'Page Break Preview' and further adjust page layout to fit nicely in the print area"]
[]
[]
[null,null,null,null,null,null,null,null,"- Replace the title part, copyright year with launch year, check other texts, and the overall diagram (adjust axis value if needed)"]
[]
[null,null,null,null,null,null,null,null,"- Once done, change font color from Row 107 downward to white"]

{"sheet":"E01","index":3,"n_rows":38,"n_cols":11,"rows_kept":38,"cut":false,"hidden":false,"merged":[[19,2,22,3],[7,2,7,3],[8,2,11,3],[5,2,5,3],[6,2,6,3],[16,2,16,3],[17,2,17,3],[18,2,18,3]]}
[]
[null,null,null,null,null,null,null,null,"Organizarse para la resiliencia"]
[null,"E1 Inclusión de las personas con discapacidad en la gobernabilidad del riesgo de desastres",null,null,null,null,{"$f":"TRIM(LEFT(B3,3))","v":"E1"},null,{"$f":"TRIM(MID(B3,4,120))","v":"Inclusión de las personas con discapacidad en la gobernabilidad del riesgo de desastres"}]
[]
[null,"Q 1.1 No dejar a nadie atrás",null,null,null,null,{"$f":"TRIM(LEFT(B5,6))","v":"Q 1.1"},null,{"$f":"TRIM(MID(B5,6,120))","v":"No dejar a nadie atrás"}]
[null,"Pregunta","Comentarios"]
[]
[null,"Respuestas","Medios de verificación (explicación y pruebas)"]
[null,null,null,null,null,{"$f":"IF($E$9=1,TRUE,FALSE)","v":false},null,null,null,null,2]
[null,null,null,null,null,{"$f":"IF($E$9=2,TRUE,FALSE)","v":false}]
[null,null,null,null,null,{"$f":"IF($E$9=3,TRUE,FALSE)","v":false}]
[null,null,null,null,null,{"$f":"IF($E$9=4,TRUE,FALSE)","v":false}]
[null,"Acciones para fomentar la inclusión de las personas con discapacidad","Entidad responsable ","Tiempo asignado"]
[]
[]
[null,"Q 1.2 Organización, coordinación y participación",null,null,null,null,{"$f":"TRIM(LEFT(B16,5))","v":"Q 1.2"},null,{"$f":"TRIM(MID(B16,5,120))","v":"2 Organización, coordinación y participación"}]
[null,"Pregunta","Comentarios"]
[]
[null,"Respuestas","Medios de verificación (explicación y pruebas)"]
[null,null,null,null,null,{"$f":"IF($E$20=1,TRUE,FALSE)","v":false}]
[null,null,null,null,null,{"$f":"IF($E$20=2,TRUE,FALSE)","v":false}]
[null,null,null,null,null,{"$f":"IF($E$20=3,TRUE,FALSE)","v":false}]
[null,null,null,null,null,{"$f":"IF($E$20=4,TRUE,FALSE)","v":false}]
[null,"Acciones para fomentar la inclusión de las personas con discapacidad","Entidad responsable ","Tiempo asignado"]
[]
[]
[null,null,null,null,null,null,{"$f":"LEFT(B27,5)","v":""}]
[]
[]
[]
[]
[]
[]
[]
[]
[]
[]
[null,null,null,null,null,null,{"$f":"LEFT(B38,5)","v":""}]

{"sheet":"E02","index":4,"n_rows":38,"n_cols":9,"rows_kept":38,"cut":false,"hidden":false,"merged":[[18,2,18,3],[8,2,11,3],[19,2,22,3],[5,2,5,3],[6,2,6,3],[7,2,7,3],[16,2,16,3],[17,2,17,3]]}
[]
[null,null,null,null,null,null,null,null,"Identificar, comprender y utilizar los escenarios de riesgo actuales y futuros  "]
[null,"E2 Inclusión de las personas con discapacidad en los escenarios de riesgo de desastres\n",null,null,null,null,{"$f":"TRIM(LEFT(B3,3))","v":"E2"},null,"Inclusión de las personas con discapacidad en los escenarios de riesgo de desastres"]
[]
[null,"Q 2.1 Diseño de análisis de riesgos y escenarios de riesgo que tengan en cuenta la discapacidad",null,null,null,null,{"$f":"TRIM(LEFT(B5,6))","v":"Q 2.1"},null,"Diseño de análisis de riesgos y escenarios de riesgo que tengan en cuenta la discapacidad"]
[null,"Pregunta","Comentarios"]
[]
[null,"Respuestas","Medios de verificación (explicación y pruebas)"]
[null,null,null,null,null,{"$f":"IF($E$9=1,TRUE,FALSE)","v":false}]
[null,null,null,null,null,{"$f":"IF($E$9=2,TRUE,FALSE)","v":false}]
[null,null,null,null,null,{"$f":"IF($E$9=3,TRUE,FALSE)","v":false}]
[null,null,null,null,null,{"$f":"IF($E$9=4,TRUE,FALSE)","v":false}]
[null,"Acciones para fomentar la inclusión de las personas con discapacidad","Entidad responsible","Tiempo asignado"]
[]
[]
[null,"Q 2.2 Efectos en cascada",null,null,null,null,{"$f":"TRIM(LEFT(B16,6))","v":"Q 2.2"},null,"Efectos en cascada"]
[null,"Pregunta","Comentarios"]
[]
[null,"Respuestas","Medios de verificación (explicación y pruebas)"]
[null,null,null,null,null,{"$f":"IF($E$20=1,TRUE,FALSE)","v":false}]
[null,null,null,null,null,{"$f":"IF(E20=2,TRUE,FALSE)","v":false}]
[null,null,null,null,null,{"$f":"IF(E20=3,TRUE,FALSE)","v":false}]
[null,null,null,null,null,{"$f":"IF(E20=4,TRUE,FALSE)","v":false}]
[null,"Acciones para fomentar la inclusión de las personas con discapacidad","Entidad responsible","Tiempo asignado"]
[]
[]
[null,null,null,null,null,null,{"$f":"LEFT(B27,5)","v":""}]
[]
[]
[]
[]
[]
[]
[]
[]
[]
[]
[null,null,null,null,null,null,{"$f":"LEFT(B38,5)","v":""}]

{"sheet":"E03","index":5,"n_rows":38,"n_cols":9,"rows_kept":38,"cut":false,"hidden":false,"merged":[[4,1,4,3],[5,2,5,3],[6,2,6,3],[7,2,7,3],[8,2,11,3]]}
[]
[null,null,null,null,null,null,null,null,"Fortalecer la capacidad financiera para la resiliencia "]
[null,"E3 - Inclusión de las personas con discapacidad en los mecanismos financieros",null,null,null,null,{"$f":"TRIM(LEFT(B3,3))","v":"E3"},null,{"$f":"TRIM(MID(B3,5,80))","v":"Inclusión de las personas con discapacidad en los mecanismos financieros"}]
[]
[null,"Q 3.1 Mecanismos financieros inclusivos",null,null,null,null,{"$f":"TRIM(LEFT(B5,6))","v":"Q 3.1"},null,{"$f":"TRIM(MID(B5,6,120))","v":"Mecanismos financieros inclusivos"}]
[null,"Pregunta","Comentarios"]
[]
[null,"Respuestas","Medios de verificación (explicación y pruebas)"]
[null,null,null,null,null,{"$f":"IF($E$9=1,TRUE,FALSE)","v":false}]
[null,null,null,null,null,{"$f":"IF($E$9=2,TRUE,FALSE)","v":false}]
[null,null,null,null,null,{"$f":"IF($E$9=3,TRUE,FALSE)","v":false}]
[null,null,null,null,null,{"$f":"IF($E$9=4,TRUE,FALSE)","v":false}]
[null,"Acciones para fomentar la inclusión de las personas con discapacidad","Entidad responsible","Tiempo asignado"]
[]
[]
[null,null,null,null,null,null,{"$f":"TRIM(LEFT(B16,6))","v":""}]
[]
[]
[]
[]
[]
[]
[]
[]
[]
[]
[null,null,null,null,null,null,{"$f":"LEFT(B27,5)","v":""}]
[]
[]
[]
[]
[]
[]
[]
[]
[]
[]
[null,null,null,null,null,null,{"$f":"LEFT(B38,5)","v":""}]

{"sheet":"E04","index":6,"n_rows":46,"n_cols":9,"rows_kept":46,"cut":false,"hidden":false,"merged":[[28,2,28,3],[29,2,29,3],[30,2,33,3],[4,1,4,3],[5,2,5,3],[8,2,11,3],[6,2,6,3],[7,2,7,3],[15,1,15,3],[16,2,16,3],[17,2,17,3],[18,2,18,3],[26,1,26,3],[27,2,27,3],[19,2,22,3],[37,1,37,3],[38,2,38,3],[39,2,39,3],[40,2,40,3],[41,2,44,3]]}
[]
[null,null,null,null,null,null,null,null,"Promover el diseño y desarrollo urbano resiliente"]
[null,"E4 Inclusión de las personas con discapacidad en los códigos de uso de suelo/construcción",null,null,null,null,{"$f":"TRIM(LEFT(B3,3))","v":"E4"},null,"Inclusión de las personas con discapacidad en los códigos de uso de suelo/construcción"]
[]
[null,"Q 4.1 Diseño urbano inclusivo y resiliente",null,null,null,null,{"$f":"TRIM(LEFT(B5,6))","v":"Q 4.1"},null,"Diseño urbano inclusivo y resiliente"]
[null,"Pregunta","Comentarios"]
[]
[null,"Respuestas","Medios de verificación (explicación y pruebas)"]
[null,null,null,null,null,{"$f":"IF(E9=1,TRUE,FALSE)","v":false}]
[null,null,null,null,null,{"$f":"IF(E9=2,TRUE,FALSE)","v":false}]
[null,null,null,null,null,{"$f":"IF(E9=3,TRUE,FALSE)","v":false}]
[null,null,null,null,null,{"$f":"IF(E9=4,TRUE,FALSE)","v":false}]
[null,"Acciones para fomentar la inclusión de las personas con discapacidad","Entidad responsable ","Tiempo asignado"]
[]
[]
[null,"Q 4.2 Códigos y normas de construcción",null,null,null,null,{"$f":"TRIM(LEFT(B16,6))","v":"Q 4.2"},null,"Códigos y normas de construcción"]
[null,"Pregunta","Comentarios"]
[]
[null,"Respuestas","Medios de verificación (explicación y pruebas)"]
[null,null,null,null,null,{"$f":"IF($E$20=1,TRUE,FALSE)","v":false}]
[null,null,null,null,null,{"$f":"IF($E$20=2,TRUE,FALSE)","v":false}]
[null,null,null,null,null,{"$f":"IF($E$20=3,TRUE,FALSE)","v":false}]
[null,null,null,null,null,{"$f":"IF($E$20=4,TRUE,FALSE)","v":false}]
[null,"Acciones para fomentar la inclusión de las personas con discapacidad","Entidad responsable ","Tiempo asignado"]
[]
[]
[null,"Q 4.3 Códigos y normas de construcción",null,null,null,null,{"$f":"LEFT(B27,5)","v":"Q 4.3"},null,"Códigos y normas de construcción"]
[null,"Pregunta","Comentarios"]
[]
[null,"Respuestas","Medios de verificación (explicación y pruebas)"]
[null,null,null,null,null,{"$f":"IF($E$31=1,TRUE,FALSE)","v":false}]
[null,null,null,null,null,{"$f":"IF($E$31=2,TRUE,FALSE)","v":false}]
[null,null,null,null,null,{"$f":"IF($E$31=3,TRUE,FALSE)","v":false}]
[null,null,null,null,null,{"$f":"IF($E$31=4,TRUE,FALSE)","v":false}]
[null,"Acciones para fomentar la inclusión de las personas con discapacidad","Entidad responsible","Tiempo asignado"]
[]
[]
[" ","Q 4.4 Eliminación de barreras del entorno",null,null,null,null,{"$f":"LEFT(B38,5)","v":"Q 4.4"},null,"Eliminación de barreras del entorno"]
[null,"Pregunta","Comentarios"]
[]
[null,"Respuestas","Medios de verificación (explicación y pruebas)"]
[null,null,null,null,null,{"$f":"IF(E42=1,TRUE,FALSE)","v":false}]
[null,null,null,null,null,{"$f":"IF(E42=2,TRUE,FALSE)","v":false}]
[null,null,null,null,null,{"$f":"IF(E42=3,TRUE,FALSE)","v":false}]
[null,null,null,null,null,{"$f":"IF(E42=4,TRUE,FALSE)","v":false}]
[null,"Acciones para fomentar la inclusión de las personas con discapacidad","Entidad responsible","Tiempo asignado"]

{"sheet":"E05","index":7,"n_rows":4,"n_cols":9,"rows_kept":4,"cut":false,"hidden":false,"merged":[]}
[]
[null,null,null,null,null,null,null,null,"Proteger las zonas naturales de amortiguamiento para mejorar las funciones de protección de los ecosistemas"]
[]
[null,"E5 Gestión de los servicios ecosistémicos teniendo en cuenta a las personas con discapacidad",null,null,null,null,null,null,"Gestión de los servicios ecosistémicos teniendo en cuenta a las personas con discapacidad"]

{"sheet":"E06","index":8,"n_rows":38,"n_cols":9,"rows_kept":38,"cut":false,"hidden":false,"merged":[[4,1,4,3],[5,2,5,3],[6,2,6,3],[7,2,7,3],[8,2,11,3],[19,2,22,3],[15,1,15,3],[16,2,16,3],[17,2,17,3],[18,2,18,3]]}
[]
[null,null,null,null,null,null,null,null,"Fortalecer la capacidad institucional para la resiliencia  "]
[null,"E6 Inclusión de personas con discapacidad en la capacidad institucional",null,null,null,null,{"$f":"TRIM(LEFT(B3,3))","v":"E6"},null,"Inclusión de personas con discapacidad en la capacidad institucional"]
[]
[null,"Q 6.1 Desarrollo de capacidades e inclusión para la resiliencia",null,null,null,null,{"$f":"TRIM(LEFT(B5,6))","v":"Q 6.1"},null,"Desarrollo de capacidades e inclusión para la resiliencia"]
[null,"Pregunta","Comentarios"]
[]
[null,"Respuestas","Provide means of verification (explanation and evidence)"]
[null,null,null,null,null,{"$f":"IF(E9=1,TRUE,FALSE)","v":false}]
[null,null,null,null,null,{"$f":"IF(E9=2,TRUE,FALSE)","v":false}]
[null,null,null,null,null,{"$f":"IF(E9=3,TRUE,FALSE)","v":false}]
[null,null,null,null,null,{"$f":"IF(E9=4,TRUE,FALSE)","v":false}]
[null,"Acciones para fomentar la inclusión de las personas con discapacidad","Entidad responsible","Tiempo asignado"]
[]
[]
[null,"Q 6.2 Lenguaje accesible",null,null,null,null,{"$f":"TRIM(LEFT(B16,6))","v":"Q 6.2"},null,"Lenguaje accesible"]
[null,"Pregunta","Comentarios"]
[]
[null,"Respuestas","Medios de verificación (explicación y pruebas)"]
[null,null,null,null,null,{"$f":"IF(E20=1,TRUE,FALSE)","v":false}]
[null,null,null,null,null,{"$f":"IF(E20=2,TRUE,FALSE)","v":false}]
[null,null,null,null,null,{"$f":"IF(E20=3,TRUE,FALSE)","v":false}]
[null,null,null,null,null,{"$f":"IF(E20=4,TRUE,FALSE)","v":false}]
[null,"Acciones para fomentar la inclusión de las personas con discapacidad","Entidad responsible","Tiempo asignado"]
[]
[]
[null,null,null,null,null,null,{"$f":"LEFT(B27,5)","v":""},null,{"$f":"TRIM(MID(B27,6,120))","v":""}]
[]
[]
[]
[]
[]
[]
[]
[]
[]
[]
[null,null,null,null,null,null,{"$f":"LEFT(B38,5)","v":""},null,{"$f":"TRIM(MID(B38,6,120))","v":""}]

{"sheet":"E07","index":9,"n_rows":38,"n_cols":9,"rows_kept":38,"cut":false,"hidden":false,"merged":[[4,1,4,3],[5,2,5,3],[6,2,6,3],[7,2,7,3],[15,1,15,3],[16,2,16,3],[8,2,11,3],[19,2,22,3],[17,2,17,3],[18,2,18,3]]}
[]
[null,null,null,null,null,null,null,null,"Comprender y fortalecer la capacidad social para la resiliencia "]
[null,"E7 Inclusión de las personas con discapacidad en la capacidad de la sociedad",null,null,null,null,{"$f":"TRIM(LEFT(B3,3))","v":"E7"},null,{"$f":"TRIM(MID(B3,4,80))","v":"Inclusión de las personas con discapacidad en la capacidad de la sociedad"}]
[]
[null,"Q 7.1 Participación activa de las organizaciones de personas con discapacidad",null,null,null,null,{"$f":"TRIM(LEFT(B5,6))","v":"Q 7.1"},null,"Participación activa de las organizaciones de personas con discapacidad"]
[null,"Pregunta","Comentarios"]
[]
[null,"Respuestas","Medios de verificación (explicación y pruebas)"]
[null,null,null,null,null,{"$f":"IF(E9=1,TRUE,FALSE)","v":false}]
[null,null,null,null,null,{"$f":"IF(E9=2,TRUE,FALSE)","v":false}]
[null,null,null,null,null,{"$f":"IF(E9=3,TRUE,FALSE)","v":false}]
[null,null,null,null,null,{"$f":"IF(E9=4,TRUE,FALSE)","v":false}]
[null,"Acciones para fomentar la inclusión de las personas con discapacidad","Entidad responsible","Tiempo asignado"]
[]
[]
[null,"Q 7.2 Desarrollo de capacidades por y para las organizaciones de personas con discapacidad",null,null,null,null,{"$f":"TRIM(LEFT(B16,6))","v":"Q 7.2"},null,{"$f":"TRIM(MID(B16,6,120))","v":"Desarrollo de capacidades por y para las organizaciones de personas con discapacidad"}]
[null,"Pregunta","Comentarios"]
[]
[null,"Respuestas","Medios de verificación (explicación y pruebas)"]
[null,null,null,null,null,{"$f":"IF(E20=1,TRUE,FALSE)","v":false}]
[null,null,null,null,null,{"$f":"IF(E20=2,TRUE,FALSE)","v":false}]
[null,null,null,null,null,{"$f":"IF(E20=3,TRUE,FALSE)","v":false}]
[null,null,null,null,null,{"$f":"IF(E20=4,TRUE,FALSE)","v":false}]
[null,"Acciones para fomentar la inclusión de las personas con discapacidad","Entidad responsible","Tiempo asignado"]
[]
[]
[null,null,null,null,null,null,{"$f":"LEFT(B27,5)","v":""},null,{"$f":"TRIM(MID(B27,6,120))","v":""}]
[]
[]
[]
[]
[]
[]
[]
[]
[]
[]
[null,null,null,null,null,null,{"$f":"LEFT(B38,5)","v":""},null,{"$f":"TRIM(MID(B38,6,120))","v":""}]

{"sheet":"E08","index":10,"n_rows":38,"n_cols":10,"rows_kept":38,"cut":false,"hidden":false,"merged":[[8,2,11,3],[4,1,4,3],[5,2,5,3],[6,2,6,3],[7,2,7,3]]}
[]
[null,null,null,null,null,null,null,null,"Aumentar la resiliencia de la infraestructura vital"]
[null,"E8 Inclusión de las personas con discapacidad en la resiliencia de la infraestructura vital",null,null,null,null,{"$f":"TRIM(LEFT(B3,3))","v":"E8"},null,{"$f":"TRIM(MID(B3,4,120))","v":"Inclusión de las personas con discapacidad en la resiliencia de la infraestructura vital"},{"$f":"TRIM(MID(C3,4,80))","v":""}]
[]
[null,"Q 8.1 Protección contra la violencia",null,null,null,null,{"$f":"TRIM(LEFT(B5,6))","v":"Q 8.1"},null,{"$f":"TRIM(MID(B5,6,120))","v":"Protección contra la violencia"},{"$f":"TRIM(MID(C5,6,120))","v":""}]
[null,"Pregunta","Comentarios"]
[]
[null,"Respuestas","Medios de verificación (explicación y pruebas)"]
[null,null,null,null,null,{"$f":"IF(E9=1,TRUE,FALSE)","v":false}]
[null,null,null,null,null,{"$f":"IF(E9=2,TRUE,FALSE)","v":false}]
[null,null,null,null,null,{"$f":"IF(E9=3,TRUE,FALSE)","v":false}]
[null,null,null,null,null,{"$f":"IF(E9=4,TRUE,FALSE)","v":false}]
[null,"Acciones para fomentar la inclusión de las personas con discapacidad","Entidad responsible","Tiempo asignado"]
[]
[]
[null,null,null,null,null,null,{"$f":"TRIM(LEFT(B16,6))","v":""},null,{"$f":"TRIM(MID(B16,6,120))","v":""},{"$f":"TRIM(MID(C16,6,120))","v":""}]
[]
[]
[]
[]
[]
[]
[]
[]
[]
[]
[null,null,null,null,null,null,{"$f":"LEFT(B27,5)","v":""},null,{"$f":"TRIM(MID(B27,6,120))","v":""},{"$f":"TRIM(MID(C27,6,120))","v":""}]
[]
[]
[]
[]
[]
[]
[]
[]
[]
[]
[null,null,null,null,null,null,{"$f":"LEFT(B38,5)","v":""},null,{"$f":"TRIM(MID(B38,6,120))","v":""},{"$f":"TRIM(MID(C38,6,120))","v":""}]

{"sheet":"E09","index":11,"n_rows":38,"n_cols":9,"rows_kept":38,"cut":false,"hidden":false,"merged":[[30,2,33,3],[19,2,22,3],[26,1,26,3],[27,2,27,3],[28,2,28,3],[29,2,29,3],[17,2,17,3],[18,2,18,3],[4,1,4,3],[5,2,5,3],[6,2,6,3],[7,2,7,3],[15,1,15,3],[16,2,16,3],[8,2,11,3]]}
[]
[null,null,null,null,null,null,null,null,"Asegurar una respuesta efectiva a los desastres"]
[null,"E9 Inclusión de las personas con discapacidad en la respuesta ante los desastres",null,null,null,null,{"$f":"TRIM(LEFT(B3,3))","v":"E9"},null,{"$f":"TRIM(MID(B3,4,80))","v":"Inclusión de las personas con discapacidad en la respuesta ante los desastres"}]
[]
[null,"Q 9.1 Detección inclusiva, vigilancia y alertas tempranas",null,null,null,null,{"$f":"TRIM(LEFT(B5,6))","v":"Q 9.1"},null,{"$f":"TRIM(MID(B5,6,120))","v":"Detección inclusiva, vigilancia y alertas tempranas"}]
[null,"Pregunta","Comentarios"]
[]
[null,"Respuestas","Medios de verificación (explicación y pruebas)"]
[null,null,null,null,null,{"$f":"IF(E9=1,TRUE,FALSE)","v":false}]
[null,null,null,null,null,{"$f":"IF(E9=2,TRUE,FALSE)","v":false}]
[null,null,null,null,null,{"$f":"IF(E9=3,TRUE,FALSE)","v":false}]
[null,null,null,null,null,{"$f":"IF(E9=4,TRUE,FALSE)","v":false}]
[null,"Acciones para fomentar la inclusión de las personas con discapacidad","Entidad responsible","Tiempo asignado"]
[]
[]
[null,"Q 9.2 Simulacros",null,null,null,null,{"$f":"TRIM(LEFT(B16,6))","v":"Q 9.2"},null,{"$f":"TRIM(MID(B16,6,120))","v":"Simulacros"}]
[null,"Pregunta","Comentarios"]
[]
[null,"Respuestas","Medios de verificación (explicación y pruebas)"]
[null,null,null,null,null,{"$f":"IF(E20=1,TRUE,FALSE)","v":false}]
[null,null,null,null,null,{"$f":"IF(E20=2,TRUE,FALSE)","v":false}]
[null,null,null,null,null,{"$f":"IF(E20=3,TRUE,FALSE)","v":false}]
[null,null,null,null,null,{"$f":"IF(E20=4,TRUE,FALSE)","v":false}]
[null,"Acciones para fomentar la inclusión de las personas con discapacidad","Entidad responsible","Tiempo asignado"]
[]
[]
[null,"Q 9.3 Campañas de sensibilización y simulacros multiescenario",null,null,null,null,{"$f":"LEFT(B27,5)","v":"Q 9.3"},null,{"$f":"TRIM(MID(B27,6,120))","v":"Campañas de sensibilización y simulacros multiescenario"}]
[null,"Pregunta","Comentarios"]
[]
[null,"Respuestas","Medios de verificación (explicación y pruebas)"]
[null,null,null,null,null,{"$f":"IF(E31=1,TRUE,FALSE)","v":false}]
[null,null,null,null,null,{"$f":"IF(E31=2,TRUE,FALSE)","v":false}]
[null,null,null,null,null,{"$f":"IF(E31=3,TRUE,FALSE)","v":false}]
[null,null,null,null,null,{"$f":"IF(E31=4,TRUE,FALSE)","v":false}]
[null,"Acciones para fomentar la inclusión de las personas con discapacidad","Entidad responsible","Tiempo asignado"]
[]
[]
[null,null,null,null,null,null,{"$f":"LEFT(B38,5)","v":""},null,{"$f":"TRIM(MID(B38,6,120))","v":""}]

{"sheet":"E10","index":12,"n_rows":38,"n_cols":9,"rows_kept":38,"cut":false,"hidden":false,"merged":[[16,2,16,3],[17,2,17,3],[18,2,18,3],[19,2,22,3],[4,1,4,3],[5,2,5,3],[6,2,6,3],[7,2,7,3],[8,2,11,3],[15,1,15,3]]}
[]
[null,null,null,null,null,null,null,null,"Acelerar el proceso de recuperación y reconstruir mejor"]
[null,"E10 Inclusión de las personas con discapacidad en la recuperación/reconstrucción mejorada",null,null,null,null,{"$f":"TRIM(LEFT(B3,3))","v":"E10"},null,{"$f":"TRIM(MID(B3,4,120))","v":"Inclusión de las personas con discapacidad en la recuperación/reconstrucción mejorada"}]
[]
[null,"Q 10.1 Reconstrucción y rehabilitación inclusivas",null,null,null,null,{"$f":"TRIM(LEFT(B5,6))","v":"Q 10.1"},null,{"$f":"TRIM(MID(B5,8,120))","v":"Reconstrucción y rehabilitación inclusivas"}]
[null,"Pregunta","Comentarios"]
[]
[null,"Respuestas","Medios de verificación (explicación y pruebas)"]
[null,null,null,null,null,{"$f":"IF(E9=1,TRUE,FALSE)","v":false}]
[null,null,null,null,null,{"$f":"IF(E9=2,TRUE,FALSE)","v":false}]
[null,null,null,null,null,{"$f":"IF(E9=3,TRUE,FALSE)","v":false}]
[null,null,null,null,null,{"$f":"IF(E9=4,TRUE,FALSE)","v":false}]
[null,"Acciones para fomentar la inclusión de las personas con discapacidad","Entidad responsible","Tiempo asignado"]
[]
[]
[null,"Q 10.2 Recopilación de lecciones aprendidas",null,null,null,null,{"$f":"TRIM(LEFT(B16,6))","v":"Q 10.2"},null,{"$f":"TRIM(MID(B16,8,120))","v":"Recopilación de lecciones aprendidas"}]
[null,"Pregunta","Comentarios"]
[]
[null,"Respuestas","Medios de verificación (explicación y pruebas)"]
[null,null,null,null,null,{"$f":"IF(E20=1,TRUE,FALSE)","v":false}]
[null,null,null,null,null,{"$f":"IF(E20=2,TRUE,FALSE)","v":false}]
[null,null,null,null,null,{"$f":"IF(E20=3,TRUE,FALSE)","v":false}]
[null,null,null,null,null,{"$f":"IF(E20=4,TRUE,FALSE)","v":false}]
[null,"Acciones para fomentar la inclusión de las personas con discapacidad","Entidad responsible","Tiempo asignado"]
[]
[]
[null,null,null,null,null,null,{"$f":"LEFT(B27,5)","v":""},null,{"$f":"TRIM(MID(B27,6,120))","v":""}]
[]
[]
[]
[]
[]
[]
[]
[]
[]
[]
[null,null,null,null,null,null,{"$f":"LEFT(B38,5)","v":""},null,{"$f":"TRIM(MID(B38,6,120))","v":""}]

{"sheet":"About","index":13,"n_rows":0,"n_cols":0,"rows_kept":0,"cut":false,"hidden":false,"merged":[]}